[Event "44th Chess Olympiad Women 2022"]
[Site "Chennai"]
[Date "2022.08.03"]
[Round "6.57"]
[White "Markidou, Christianna"]
[Black "Cho, Yeonhee"]
[Result "1-0"]
[WhiteElo "1701"]
[BlackElo "1427"]
[Annotator "NA RC"]
[PlyCount "93"]
[EventDate "2022.??.??"]
[TimeControl "60"]

1. e4 {[%emt 0:00:05]} e5 {[%emt 0:00:05]} 2. Nf3 {[%emt 0:00:04]} Nc6 {
[%emt 0:00:05]} 3. d4 {[%emt 0:00:07]} exd4 {[%emt 0:00:05]} 4. Nxd4 {[%emt 0:
00:00]} Bc5 {[%emt 0:00:06]} 5. Be3 {[%emt 0:12:48]} Qf6 {[%emt 0:00:23]} 6. c3
{[%emt 0:00:54]} Nge7 {[%emt 0:00:47]} 7. b4 {[%emt 0:03:55]} Bb6 {[%emt 0:00:
00]} 8. Na3 {[%emt 0:03:08]} d5 {[%emt 0:09:05]} 9. Qf3 {[%emt 0:09:33]} Bxd4 {
[%emt 0:23:01]} 10. Bxd4 {[%emt 0:01:14]} Qxf3 {[%emt 0:00:11]} 11. gxf3 {
[%emt 0:00:15]} Nxd4 {[%emt 0:00:12]} 12. cxd4 {[%emt 0:00:18]} O-O {[%emt 0:
00:00]} 13. Bd3 {[%emt 0:08:14]} Rd8 {[%emt 0:07:34]} 14. e5 {[%emt 0:00:34]}
Bf5 {[%emt 0:06:01]} 15. Kd2 {[%emt 0:00:44]} Bxd3 {[%emt 0:10:23]} 16. Kxd3 {
[%emt 0:03:50]} a5 {[%emt 0:03:33]} 17. b5 {[%emt 0:00:32]} c6 {[%emt 0:31:09]}
18. Rhc1 {[%emt 0:01:17]} Rdc8 {[%emt 0:00:40]} 19. Rc3 {[%emt 0:04:53]} cxb5 {
[%emt 0:00:49]} 20. Nxb5 {[%emt 0:02:22]} Rxc3+ {[%emt 0:00:04]} 21. Nxc3 {
[%emt 0:03:07]} Ra6 {[%emt 0:00:57]} 22. Rb1 {[%emt 0:00:53]} b6 {[%emt 0:00:
00]} 23. Rb5 {[%emt 0:00:15]} Kf8 {[%emt 0:00:34]} 24. Nxd5 {[%emt 0:00:15]}
Nxd5 {[%emt 0:00:05]} 25. Rxd5 {[%emt 0:00:15]} Ra7 {[%emt 0:00:12]} 26. Rb5 {
[%emt 0:05:55]} Rb7 {[%emt 0:00:05]} 27. f4 {[%emt 0:01:43]} Ke7 {[%emt 0:00:
00]} 28. f5 {[%emt 0:01:26]} Rb8 {[%emt 0:00:47]} 29. f4 {[%emt 0:01:41]} h6 {
[%emt 0:00:41]} 30. d5 {[%emt 0:01:17]} Kd7 {[%emt 0:00:18]} 31. a4 {[%emt 0:
00:00]} Kc7 {[%emt 0:00:42]} 32. Rb2 {[%emt 0:00:25]} Kd7 {[%emt 0:00:35]} 33.
Kd4 {[%emt 0:00:39]} Rb7 {[%emt 0:00:29]} 34. d6 {[%emt 0:02:54]} Rb8 {[%emt 0:
00:00]} 35. Kd5 {[%emt 0:00:28]} b5 {[%emt 0:00:55]} 36. axb5 {[%emt 0:00:20]}
a4 {[%emt 0:00:29]} 37. e6+ {[%emt 0:00:23]} fxe6+ {[%emt 0:00:12]} 38. fxe6+ {
[%emt 0:00:15]} Kd8 {[%emt 0:00:18]} 39. Kc6 {[%emt 0:07:55]} Rc8+ {[%emt 0:00:
00]} 40. Kb7 {[%emt 0:00:13]} a3 {[%emt 0:00:38]} 41. Ra2 {[%emt 0:30:12]} Rc3
{[%emt 0:30:25]} 42. b6 {[%emt 0:00:28]} Rd3 {[%emt 0:00:34]} 43. Kc6 {[%emt 0:
00:00]} Rc3+ {[%emt 0:00:08]} 44. Kd5 {[%emt 0:00:54]} Rb3 {[%emt 0:00:27]} 45.
b7 {[%emt 0:01:33]} Rxb7 {[%emt 0:00:08]} 46. Rxa3 {[%emt 0:00:10]} Rb8 {
[%emt 0:00:22]} 47. Ra7 {[%emt 0:00:25]} 1-0

[Event "44th Chess Olympiad Women 2022"]
[Site "Chennai"]
[Date "2022.08.03"]
[Round "6.57"]
[White "Park, Haneul"]
[Black "Ioannides Liu, Alice"]
[Result "1/2-1/2"]
[WhiteElo "1531"]
[BlackElo "1292"]
[Annotator "NA RC"]
[PlyCount "68"]
[EventDate "2022.??.??"]
[TimeControl "60"]

1. d4 {[%emt 0:00:02]} Nf6 {[%emt 0:00:04]} 2. c4 {[%emt 0:00:04]} e6 {[%emt 0:
00:00]} 3. Nf3 {[%emt 0:00:06]} d5 {[%emt 0:00:32]} 4. Nc3 {[%emt 0:00:13]} Be7
{[%emt 0:06:00]} 5. Bf4 {[%emt 0:00:50]} c6 {[%emt 0:09:21]} 6. e3 {[%emt 0:00:
00]} O-O {[%emt 0:03:52]} 7. Bd3 {[%emt 0:05:52]} Nbd7 {[%emt 0:10:01]} 8. c5 {
[%emt 0:01:09]} b6 {[%emt 0:01:58]} 9. b4 {[%emt 0:01:11]} a5 {[%emt 0:02:10]}
10. a3 {[%emt 0:00:45]} b5 {[%emt 0:05:15]} 11. O-O {[%emt 0:17:22]} Bb7 {
[%emt 0:09:38]} 12. Qe2 {[%emt 0:12:36]} Re8 {[%emt 0:10:05]} 13. Rfc1 {
[%emt 0:03:52]} Nf8 {[%emt 0:02:08]} 14. Nxb5 {[%emt 0:07:51]} Nh5 {[%emt 0:00:
00]} 15. Nc3 {[%emt 0:06:54]} Nxf4 {[%emt 0:00:12]} 16. exf4 {[%emt 0:00:21]}
axb4 {[%emt 0:06:33]} 17. axb4 {[%emt 0:01:42]} Bf6 {[%emt 0:01:11]} 18. Ne5 {
[%emt 0:04:37]} Bxe5 {[%emt 0:02:15]} 19. fxe5 {[%emt 0:01:48]} f6 {[%emt 0:00:
00]} 20. b5 {[%emt 0:10:57]} f5 {[%emt 0:00:44]} 21. bxc6 {[%emt 0:02:59]} Bxc6
{[%emt 0:00:08]} 22. Nb5 {[%emt 0:01:54]} Qh4 {[%emt 0:01:42]} 23. g3 {[%emt 0:
00:00]} Qg5 {[%emt 0:00:44]} 24. Na7 {[%emt 0:03:48]} Rxa7 {[%emt 0:00:25]} 25.
Rxa7 {[%emt 0:03:56]} Qxc1+ {[%emt 0:00:06]} 26. Kg2 {[%emt 0:00:11]} Qg5 {
[%emt 0:01:45]} 27. Rc7 {[%emt 0:01:33]} Ba8 {[%emt 0:00:33]} 28. Qb2 {[%emt 0:
00:00]} Qd8 {[%emt 0:01:22]} 29. Ra7 {[%emt 0:01:01]} Qb8 {[%emt 0:02:30]} 30.
Qa3 {[%emt 0:00:21]} Bc6 {[%emt 0:01:04]} 31. Qa5 {[%emt 0:01:41]} Ng6 {
[%emt 0:01:23]} 32. Rc7 {[%emt 0:01:06]} Rc8 {[%emt 0:01:09]} 33. Ra7 {[%emt 0:
00:00]} Nf8 {[%emt 0:01:07]} 34. Ra6 {[%emt 0:00:45]} Bb7 {[%emt 0:00:39]}
1/2-1/2

[Event "44th Chess Olympiad Women 2022"]
[Site "Chennai"]
[Date "2022.08.03"]
[Round "6.57"]
[White "You, Garam"]
[Black "Sokolova, Victoria"]
[Result "1-0"]
[WhiteElo "1407"]
[BlackElo "1193"]
[Annotator "NA RC"]
[PlyCount "93"]
[EventDate "2022.??.??"]
[TimeControl "60"]

1. d4 {[%emt 0:00:14]} d5 {[%emt 0:00:06]} 2. c4 {[%emt 0:00:03]} e5 {[%emt 0:
00:00]} 3. dxe5 {[%emt 0:01:19]} d4 {[%emt 0:00:10]} 4. Nf3 {[%emt 0:02:41]}
Nc6 {[%emt 0:00:14]} 5. g3 {[%emt 0:08:23]} Be6 {[%emt 0:00:26]} 6. Bg2 {
[%emt 0:01:06]} Qd7 {[%emt 0:00:28]} 7. O-O {[%emt 0:03:22]} O-O-O {[%emt 0:00:
00]} 8. Nbd2 {[%emt 0:05:37]} f6 {[%emt 0:02:42]} 9. exf6 {[%emt 0:04:03]} Nxf6
{[%emt 0:00:30]} 10. Ng5 {[%emt 0:06:09]} h6 {[%emt 0:04:44]} 11. Nxe6 {
[%emt 0:04:08]} Qxe6 {[%emt 0:00:32]} 12. a3 {[%emt 0:06:12]} Re8 {[%emt 0:00:
00]} 13. Re1 {[%emt 0:02:55]} Ne5 {[%emt 0:00:15]} 14. Qb3 {[%emt 0:08:20]} c6
{[%emt 0:03:10]} 15. Nf3 {[%emt 0:05:39]} Bc5 {[%emt 0:04:30]} 16. Nxe5 {
[%emt 0:02:31]} Qxe5 {[%emt 0:00:16]} 17. Bf4 {[%emt 0:00:23]} Qh5 {[%emt 0:00:
00]} 18. Qd3 {[%emt 0:03:30]} Rhf8 {[%emt 0:06:03]} 19. b4 {[%emt 0:08:24]} g5
{[%emt 0:03:43]} 20. Qf5+ {[%emt 0:03:32]} Nd7 {[%emt 0:00:16]} 21. Qd3 {
[%emt 0:07:11]} gxf4 {[%emt 0:03:31]} 22. bxc5 {[%emt 0:00:26]} fxg3 {[%emt 0:
00:00]} 23. hxg3 {[%emt 0:06:17]} Qxc5 {[%emt 0:00:44]} 24. Rad1 {[%emt 0:00:
00]} Ne5 {[%emt 0:03:12]} 25. Qxd4 {[%emt 0:02:50]} Qxc4 {[%emt 0:01:00]} 26.
Bh3+ {[%emt 0:00:33]} Kb8 {[%emt 0:01:35]} 27. Qd6+ {[%emt 0:00:48]} Ka8 {
[%emt 0:00:44]} 28. Rc1 {[%emt 0:02:19]} Qf7 {[%emt 0:01:53]} 29. Qc5 {[%emt 0:
00:00]} b6 {[%emt 0:04:13]} 30. Qd4 {[%emt 0:00:45]} c5 {[%emt 0:01:25]} 31.
Bg2+ {[%emt 0:00:40]} Kb8 {[%emt 0:01:41]} 32. Qd6+ {[%emt 0:00:27]} Kc8 {
[%emt 0:00:52]} 33. Bh3+ {[%emt 0:01:02]} Kb7 {[%emt 0:00:26]} 34. Bg2+ {
[%emt 0:00:26]} Kc8 {[%emt 0:00:28]} 35. f4 {[%emt 0:00:32]} Nd7 {[%emt 0:00:
00]} 36. Bh3 {[%emt 0:00:16]} Qg7 {[%emt 0:01:09]} 37. Kh2 {[%emt 0:00:34]} Re3
{[%emt 0:01:01]} 38. Bxd7+ {[%emt 0:00:22]} Kb7 {[%emt 0:02:51]} 39. Bc6+ {
[%emt 0:00:09]} Ka6 {[%emt 0:00:37]} 40. Bf3 {[%emt 0:00:47]} Rg8 {[%emt 0:00:
00]} 41. Rg1 {[%emt 0:30:57]} Qf7 {[%emt 0:33:31]} 42. Qd1 {[%emt 0:00:00]} b5
{[%emt 0:00:00]} 43. Rxc5 {[%emt 0:00:00]} Qe7 {[%emt 0:00:00]} 44. Rc6+ {
[%emt 0:00:00]} Ka5 {[%emt 0:00:00]} 45. Qd2+ {[%emt 0:00:00]} Ka4 {[%emt 0:00:
00]} 46. Ra6+ {[%emt 0:00:00]} Kb3 {[%emt 0:00:00]} 47. Bd5# {[%emt 0:00:00]}
1-0

[Event "44th Chess Olympiad Women 2022"]
[Site "Chennai"]
[Date "2022.08.03"]
[Round "6.58"]
[White "Dhimal, Shanti"]
[Black "Reitumetse Taioe"]
[Result "0-1"]
[WhiteElo "1499"]
[BlackElo "1180"]
[Annotator "NA RC"]
[PlyCount "68"]
[EventDate "2022.??.??"]
[TimeControl "60"]

1. e4 {[%emt 0:00:03]} e6 {[%emt 0:00:05]} 2. Nf3 {[%emt 0:00:17]} d5 {[%emt 0:
00:00]} 3. exd5 {[%emt 0:00:33]} exd5 {[%emt 0:00:10]} 4. Bd3 {[%emt 0:01:24]}
Nf6 {[%emt 0:02:23]} 5. h3 {[%emt 0:00:42]} Be7 {[%emt 0:00:35]} 6. O-O {
[%emt 0:00:56]} O-O {[%emt 0:00:10]} 7. b3 {[%emt 0:00:09]} c5 {[%emt 0:01:26]}
8. c3 {[%emt 0:01:50]} b6 {[%emt 0:03:21]} 9. Bb2 {[%emt 0:00:20]} Bb7 {
[%emt 0:00:25]} 10. Be2 {[%emt 0:02:40]} Nc6 {[%emt 0:03:50]} 11. d4 {[%emt 0:
00:00]} Rc8 {[%emt 0:00:58]} 12. Na3 {[%emt 0:02:06]} Re8 {[%emt 0:05:40]} 13.
Bd3 {[%emt 0:01:55]} h6 {[%emt 0:01:23]} 14. Nh4 {[%emt 0:04:16]} cxd4 {
[%emt 0:00:48]} 15. cxd4 {[%emt 0:01:45]} Nxd4 {[%emt 0:00:56]} 16. Bxd4 {
[%emt 0:03:42]} Bxa3 {[%emt 0:00:13]} 17. Qf3 {[%emt 0:02:55]} Ne4 {[%emt 0:00:
00]} 18. Qg4 {[%emt 0:02:26]} Qg5 {[%emt 0:02:23]} 19. Nf5 {[%emt 0:03:29]} Bf8
{[%emt 0:01:49]} 20. f3 {[%emt 0:07:54]} Qxg4 {[%emt 0:03:27]} 21. hxg4 {
[%emt 0:00:00]} Ng5 {[%emt 0:01:32]} 22. Kh1 {[%emt 0:00:00]} Ne6 {[%emt 0:00:
00]} 23. Bf2 {[%emt 0:03:47]} Nf4 {[%emt 0:01:06]} 24. Bb5 {[%emt 0:02:32]}
Red8 {[%emt 0:08:52]} 25. Rfe1 {[%emt 0:03:55]} Rc2 {[%emt 0:01:38]} 26. Bg3 {
[%emt 0:11:31]} Nxg2 {[%emt 0:05:24]} 27. Re5 {[%emt 0:03:16]} d4 {[%emt 0:00:
00]} 28. Be2 {[%emt 0:01:52]} d3 {[%emt 0:02:07]} 29. Kxg2 {[%emt 0:01:40]}
Rxe2+ {[%emt 0:01:44]} 30. Rxe2 {[%emt 0:00:30]} dxe2 {[%emt 0:00:07]} 31. Be1
{[%emt 0:01:14]} Rd3 {[%emt 0:00:33]} 32. Bf2 {[%emt 0:02:26]} Rd1 {[%emt 0:00:
00]} 33. Ng3 {[%emt 0:02:45]} Rxa1 {[%emt 0:00:47]} 34. Nxe2 {[%emt 0:00:37]}
Rxa2 {[%emt 0:00:17]} 0-1

[Event "44th Chess Olympiad Women 2022"]
[Site "Chennai"]
[Date "2022.08.03"]
[Round "6.58"]
[White "Leboela, Maboloko"]
[Black "Adhikari, Kritisara"]
[Result "1-0"]
[WhiteElo "1253"]
[BlackElo "1552"]
[Annotator "NA RC"]
[PlyCount "135"]
[EventDate "2022.??.??"]
[TimeControl "60"]

1. d4 {[%emt 0:00:20]} Nf6 {[%emt 0:00:22]} 2. c4 {[%emt 0:00:41]} g6 {[%emt 0:
00:00]} 3. Nf3 {[%emt 0:01:56]} Bg7 {[%emt 0:00:37]} 4. g3 {[%emt 0:00:51]} O-O
{[%emt 0:00:48]} 5. Bg2 {[%emt 0:00:41]} d6 {[%emt 0:00:30]} 6. Nc3 {[%emt 0:
00:00]} Nbd7 {[%emt 0:01:35]} 7. O-O {[%emt 0:00:43]} c5 {[%emt 0:01:34]} 8. d5
{[%emt 0:00:28]} a6 {[%emt 0:06:18]} 9. Bf4 {[%emt 0:06:33]} Rb8 {[%emt 0:00:
00]} 10. a4 {[%emt 0:08:31]} Nh5 {[%emt 0:06:48]} 11. Bd2 {[%emt 0:00:27]} b6 {
[%emt 0:03:59]} 12. Qc1 {[%emt 0:00:19]} Re8 {[%emt 0:05:44]} 13. Bh6 {[%emt 0:
00:00]} Bh8 {[%emt 0:00:52]} 14. Qd2 {[%emt 0:12:16]} Ndf6 {[%emt 0:04:46]} 15.
h3 {[%emt 0:05:19]} Bd7 {[%emt 0:04:36]} 16. e4 {[%emt 0:05:06]} Qc7 {[%emt 0:
00:00]} 17. Rac1 {[%emt 0:03:59]} b5 {[%emt 0:03:41]} 18. axb5 {[%emt 0:03:07]}
axb5 {[%emt 0:02:37]} 19. cxb5 {[%emt 0:01:17]} Bxb5 {[%emt 0:00:11]} 20. Rfe1
{[%emt 0:00:45]} Nd7 {[%emt 0:04:58]} 21. g4 {[%emt 0:06:13]} Nhf6 {[%emt 0:00:
00]} 22. b4 {[%emt 0:07:48]} Qd8 {[%emt 0:13:48]} 23. bxc5 {[%emt 0:02:19]}
Nxc5 {[%emt 0:00:16]} 24. Rcd1 {[%emt 0:06:10]} Nfd7 {[%emt 0:04:22]} 25. Nxb5
{[%emt 0:00:10]} Rxb5 {[%emt 0:00:06]} 26. Qf4 {[%emt 0:00:53]} Ne5 {[%emt 0:
00:00]} 27. Qg3 {[%emt 0:02:12]} Rb3 {[%emt 0:01:48]} 28. Re3 {[%emt 0:01:06]}
Qb6 {[%emt 0:02:41]} 29. Nxe5 {[%emt 0:02:23]} Bxe5 {[%emt 0:02:08]} 30. Rxb3 {
[%emt 0:00:49]} Qxb3 {[%emt 0:00:42]} 31. Qxb3 {[%emt 0:00:14]} Nxb3 {[%emt 0:
00:00]} 32. f4 {[%emt 0:00:27]} Bd4+ {[%emt 0:01:45]} 33. Kh2 {[%emt 0:00:08]}
Bc5 {[%emt 0:01:03]} 34. f5 {[%emt 0:00:54]} f6 {[%emt 0:01:34]} 35. Rb1 {
[%emt 0:01:45]} Nd2 {[%emt 0:00:33]} 36. Bxd2 {[%emt 0:00:11]} Kf7 {[%emt 0:00:
00]} 37. Rb7 {[%emt 0:01:40]} Ra8 {[%emt 0:00:28]} 38. Bb4 {[%emt 0:00:13]} Bd4
{[%emt 0:00:17]} 39. Bxd6 {[%emt 0:00:28]} Ra7 {[%emt 0:00:33]} 40. Rxa7 {
[%emt 0:00:13]} Bxa7 {[%emt 0:00:06]} 41. Bc7 {[%emt 0:30:19]} Bc5 {[%emt 0:00:
00]} 42. Kg3 {[%emt 0:00:09]} Ke8 {[%emt 0:00:19]} 43. Kf4 {[%emt 0:00:30]} Kd7
{[%emt 0:00:25]} 44. Ba5 {[%emt 0:00:18]} g5+ {[%emt 0:00:34]} 45. Kf3 {
[%emt 0:00:19]} Kd6 {[%emt 0:00:17]} 46. Be1 {[%emt 0:00:14]} Kd7 {[%emt 0:00:
00]} 47. Bf2 {[%emt 0:00:30]} Bd6 {[%emt 0:00:53]} 48. Bf1 {[%emt 0:00:10]} Bb4
{[%emt 0:00:56]} 49. Bb5+ {[%emt 0:00:13]} Kc7 {[%emt 0:00:17]} 50. Bd4 {
[%emt 0:00:40]} Bd6 {[%emt 0:00:38]} 51. Bf2 {[%emt 0:00:48]} Bb4 {[%emt 0:00:
00]} 52. h4 {[%emt 0:00:18]} h6 {[%emt 0:00:11]} 53. hxg5 {[%emt 0:00:51]} hxg5
{[%emt 0:00:08]} 54. Ke2 {[%emt 0:00:06]} Bd6 {[%emt 0:00:59]} 55. Kd3 {
[%emt 0:00:09]} Be5 {[%emt 0:00:37]} 56. Kc4 {[%emt 0:00:29]} Bf4 {[%emt 0:00:
00]} 57. Bc6 {[%emt 0:01:02]} Be5 {[%emt 0:02:59]} 58. Kb5 {[%emt 0:00:14]} Bd6
{[%emt 0:01:02]} 59. Ka6 {[%emt 0:00:11]} Ba3 {[%emt 0:00:25]} 60. Bb6+ {
[%emt 0:01:01]} Kd6 {[%emt 0:00:25]} 61. Bd8 {[%emt 0:03:25]} Ke5 {[%emt 0:00:
00]} 62. Bc7+ {[%emt 0:01:13]} Kxe4 {[%emt 0:00:27]} 63. d6+ {[%emt 0:00:10]}
Kf4 {[%emt 0:00:34]} 64. d7+ {[%emt 0:00:12]} Kxg4 {[%emt 0:00:40]} 65. d8=Q {
[%emt 0:00:08]} Kxf5 {[%emt 0:00:10]} 66. Qd7+ {[%emt 0:00:29]} Kg6 {[%emt 0:
00:00]} 67. Be4+ {[%emt 0:00:03]} Kh5 {[%emt 0:00:11]} 68. Qh3# {[%emt 0:00:10]
} 1-0

[Event "44th Chess Olympiad Women 2022"]
[Site "Chennai"]
[Date "2022.08.03"]
[Round "6.58"]
[White "Lohani, Sujana"]
[Black "Malehloa, Likhomo"]
[Result "1-0"]
[WhiteElo "1697"]
[BlackElo "1322"]
[Annotator "NA RC"]
[PlyCount "207"]
[EventDate "2022.??.??"]
[TimeControl "60"]

1. d4 {[%emt 0:00:02]} Nf6 {[%emt 0:02:17]} 2. Nf3 {[%emt 0:00:02]} e6 {
[%emt 0:01:04]} 3. c4 {[%emt 0:00:35]} b6 {[%emt 0:02:42]} 4. g3 {[%emt 0:00:
00]} Bb7 {[%emt 0:00:11]} 5. Bg2 {[%emt 0:00:09]} Be7 {[%emt 0:00:18]} 6. O-O {
[%emt 0:00:15]} O-O {[%emt 0:01:23]} 7. Nc3 {[%emt 0:00:21]} d5 {[%emt 0:01:12]
} 8. cxd5 {[%emt 0:02:25]} exd5 {[%emt 0:00:52]} 9. Qc2 {[%emt 0:02:50]} Nbd7 {
[%emt 0:01:31]} 10. Rd1 {[%emt 0:06:13]} Re8 {[%emt 0:02:06]} 11. Bf4 {[%emt 0:
00:00]} a6 {[%emt 0:05:05]} 12. Ne5 {[%emt 0:05:20]} Rc8 {[%emt 0:04:57]} 13.
Qf5 {[%emt 0:11:52]} g6 {[%emt 0:06:52]} 14. Qd3 {[%emt 0:05:56]} c6 {[%emt 0:
00:00]} 15. Rac1 {[%emt 0:04:29]} Nh5 {[%emt 0:02:57]} 16. Bd2 {[%emt 0:07:11]}
Nxe5 {[%emt 0:07:53]} 17. dxe5 {[%emt 0:00:07]} Bc5 {[%emt 0:04:28]} 18. Na4 {
[%emt 0:02:32]} Bf8 {[%emt 0:04:57]} 19. f4 {[%emt 0:04:27]} a5 {[%emt 0:08:42]
} 20. Be3 {[%emt 0:01:37]} b5 {[%emt 0:00:22]} 21. Nc5 {[%emt 0:08:47]} Ba8 {
[%emt 0:00:46]} 22. Bh3 {[%emt 0:02:05]} Bxc5 {[%emt 0:09:12]} 23. Bxc5 {
[%emt 0:03:42]} Rb8 {[%emt 0:00:23]} 24. Qa3 {[%emt 0:04:39]} f5 {[%emt 0:00:
00]} 25. Bg2 {[%emt 0:04:57]} Ng7 {[%emt 0:02:06]} 26. e4 {[%emt 0:06:53]} fxe4
{[%emt 0:00:12]} 27. Bxe4 {[%emt 0:00:07]} Ne6 {[%emt 0:00:36]} 28. Bf2 {
[%emt 0:01:25]} Rc8 {[%emt 0:00:55]} 29. Bf3 {[%emt 0:00:33]} Ng7 {[%emt 0:00:
00]} 30. Qb3 {[%emt 0:02:56]} Qd7 {[%emt 0:02:23]} 31. h4 {[%emt 0:02:22]} Qe6
{[%emt 0:00:52]} 32. Qd3 {[%emt 0:00:41]} Rcd8 {[%emt 0:00:26]} 33. Bb6 {
[%emt 0:00:39]} Rc8 {[%emt 0:00:31]} 34. Bxa5 {[%emt 0:00:25]} Qh3 {[%emt 0:00:
00]} 35. Bg2 {[%emt 0:00:22]} Qg4 {[%emt 0:00:18]} 36. Qf3 {[%emt 0:02:18]} Qe6
{[%emt 0:00:15]} 37. Kh2 {[%emt 0:00:43]} Qf7 {[%emt 0:01:01]} 38. Bb4 {
[%emt 0:00:36]} h5 {[%emt 0:00:43]} 39. Bh3 {[%emt 0:01:18]} Nf5 {[%emt 0:00:
00]} 40. Bxf5 {[%emt 0:00:51]} Qxf5 {[%emt 0:00:10]} 41. Qd3 {[%emt 0:30:31]}
Qf7 {[%emt 0:30:17]} 42. Bc5 {[%emt 0:00:29]} Kg7 {[%emt 0:00:27]} 43. Rc3 {
[%emt 0:02:20]} Rcd8 {[%emt 0:01:41]} 44. Qd4 {[%emt 0:00:00]} Qe6 {[%emt 0:00:
00]} 45. Ra3 {[%emt 0:00:00]} Rd7 {[%emt 0:00:00]} 46. b4 {[%emt 0:00:00]} Kh6
{[%emt 0:00:00]} 47. Rdd3 {[%emt 0:00:00]} Qg4 {[%emt 0:00:00]} 48. Qe3 {
[%emt 0:00:00]} Qf5 {[%emt 0:00:00]} 49. Ra7 {[%emt 0:00:00]} Rxa7 {[%emt 0:00:
00]} 50. Bxa7 {[%emt 0:00:00]} Bb7 {[%emt 0:00:00]} 51. Bc5 {[%emt 0:00:00]}
Bc8 {[%emt 0:00:00]} 52. Rd2 {[%emt 0:00:00]} Bd7 {[%emt 0:00:00]} 53. Qd3 {
[%emt 0:00:00]} Qh3+ {[%emt 0:00:00]} 54. Kg1 {[%emt 0:00:00]} Bf5 {[%emt 0:00:
00]} 55. Qe3 {[%emt 0:00:00]} Be4 {[%emt 0:00:00]} 56. Rh2 {[%emt 0:00:00]} Qg4
{[%emt 0:00:00]} 57. Rd2 {[%emt 0:04:15]} Qh3 {[%emt 0:00:00]} 58. Kf2 {
[%emt 0:01:39]} Qg2+ {[%emt 0:00:00]} 59. Ke1 {[%emt 0:00:17]} Qh1+ {[%emt 0:
00:00]} 60. Qg1 {[%emt 0:00:50]} Qf3 {[%emt 0:00:00]} 61. Qf2 {[%emt 0:00:57]}
Qc3 {[%emt 0:00:00]} 62. Qe3 {[%emt 0:00:20]} Qc1+ {[%emt 0:00:00]} 63. Rd1 {
[%emt 0:00:31]} Qb2 {[%emt 0:00:00]} 64. Qd2 {[%emt 0:00:31]} Qa3 {[%emt 0:00:
00]} 65. Be3 {[%emt 0:01:15]} Kh7 {[%emt 0:00:00]} 66. Rc1 {[%emt 0:00:32]} Re6
{[%emt 0:00:00]} 67. Kf2 {[%emt 0:01:21]} Qa8 {[%emt 0:00:00]} 68. Rc3 {
[%emt 0:00:35]} Qf8 {[%emt 0:00:00]} 69. Ke1 {[%emt 0:00:27]} Qf5 {[%emt 0:00:
00]} 70. Ra3 {[%emt 0:00:35]} Re7 {[%emt 0:00:00]} 71. Qd4 {[%emt 0:01:14]} Qh3
{[%emt 0:00:00]} 72. Bf2 {[%emt 0:00:19]} Qh1+ {[%emt 0:00:00]} 73. Kd2 {
[%emt 0:00:06]} Qb1 {[%emt 0:00:00]} 74. Qc3 {[%emt 0:00:38]} Qf1 {[%emt 0:00:
00]} 75. Be1 {[%emt 0:00:28]} Qg2+ {[%emt 0:00:00]} 76. Kc1 {[%emt 0:00:18]}
Qe2 {[%emt 0:00:02]} 77. Qd2 {[%emt 0:01:24]} Qg4 {[%emt 0:00:34]} 78. Ra6 {
[%emt 0:00:26]} Qc8 {[%emt 0:00:29]} 79. Ra5 {[%emt 0:00:28]} Qf5 {[%emt 0:00:
00]} 80. Ra8 {[%emt 0:00:28]} Qd7 {[%emt 0:00:22]} 81. Qd4 {[%emt 0:00:27]} Qb7
{[%emt 0:00:27]} 82. Rf8 {[%emt 0:00:29]} Rf7 {[%emt 0:00:18]} 83. Rxf7+ {
[%emt 0:00:13]} Qxf7 {[%emt 0:00:09]} 84. e6 {[%emt 0:00:50]} Qxe6 {[%emt 0:00:
00]} 85. Bc3 {[%emt 0:00:02]} Qg8 {[%emt 0:00:36]} 86. Qa7+ {[%emt 0:00:07]}
Kh6 {[%emt 0:00:32]} 87. Bf6 {[%emt 0:00:17]} g5 {[%emt 0:00:16]} 88. Bxg5+ {
[%emt 0:00:38]} Kg6 {[%emt 0:00:56]} 89. Qd4 {[%emt 0:00:39]} Kf5 {[%emt 0:00:
00]} 90. Qf6+ {[%emt 0:00:43]} Kg4 {[%emt 0:00:17]} 91. Qxc6 {[%emt 0:00:39]}
Qh8 {[%emt 0:01:31]} 92. Bf6 {[%emt 0:00:20]} Qh6 {[%emt 0:00:57]} 93. Qc3 {
[%emt 0:00:30]} Qf8 {[%emt 0:00:42]} 94. Kd2 {[%emt 0:00:43]} Qa8 {[%emt 0:00:
00]} 95. a3 {[%emt 0:00:44]} Qb7 {[%emt 0:00:37]} 96. Ke2 {[%emt 0:00:33]} Qa8
{[%emt 0:01:05]} 97. Bd4 {[%emt 0:00:38]} Qe8 {[%emt 0:00:18]} 98. Kf2 {
[%emt 0:00:17]} Qd7 {[%emt 0:00:34]} 99. Qc5 {[%emt 0:00:44]} Bg6 {[%emt 0:00:
00]} 100. Qb6 {[%emt 0:00:31]} Qf5 {[%emt 0:00:14]} 101. Qxb5 {[%emt 0:00:22]}
Qb1 {[%emt 0:00:43]} 102. Qe2+ {[%emt 0:00:29]} Kf5 {[%emt 0:01:32]} 103. g4+ {
[%emt 0:00:42]} hxg4 {[%emt 0:07:04]} 104. Qe5# {[%emt 0:00:30]} 1-0